Workbook

Sheet 目录
A1: 2024年财政预算（草案）
A2: 表1.2024年大口径财政收入预算表 …………………………………………………………………………………………………………………
A3: 表2.2024年一般公共预算收入预算表 ………………………………………………………………………………………………………………
A4: 表3.2024年一般公共预算经济分类支出预算表 ……………………………………………………………………………………………………
A5: 表4.2024年一般公共预算收支平衡表 ………………………………………………………………………………………………………………
A6: 表5.2024年一般公共预算“三公”经费、会议费、培训费支出预算表 …………………………………………………………………………
A7: 表6.提前下达2024年共同财政事权和专项转移支付补助资金（一般公共预算） ………………………………………………………………
A8: 表7.2024年政府性基金收支预算表 …………………………………………………………………………………………………………………
A9: 表8.提前下达2024年共同财政事权和专项转移支付补助资金（政府性基金预算） ……………………………………………………………
A10: 表9.2024年社会保险基金收支预算表 ………………………………………………………………………………………………………………
A11: 表10.2024年国有资本经营收支预算表 ………………………………………………………………………………………………………………
A12: 表11.2024年度政府采购预算 …………………………………………………………………………………………………………………………

Sheet 2024年大口径表
A1: 表1
A2: 2024年大口径财政收入预算表
J3: 单位：万元
A4: 预 算 科 目 | B4: 大口径收入 | E4: 中 央 收 入 | F4: 省级收入 | G4: 市县区收入
B5: 合计 | C5: 税务系统 | D5: 财政系统 | G5: 合计 | H5: 市级 收入 | I5: 县 区 收 入
I6: 小计 | J6: 县区级 | K6: 乡镇级
A7: 大口径收入总计 | B7: =B8+B47+B57 -> 58933 | C7: 44278 | D7: 15280 | E7: 15850 | F7: 8350 | G7: 34733 | H7: 180 | I7: 34553 | J7: 34553 | K7: 0
A8: 一般公共预算收入合计 | B8: =B9+B27 -> 58257 | C8: =C9+C27 -> 43653 | D8: 14604 | E8: 15850 | F8: 8290 | G8: 34117 | H8: 180 | I8: 33937 | J8: 33937 | K8: 0
A9: 一、税收收入 | B9: =SUM(B10:B26) -> 38359 | C9: 38359 | D9: 0 | E9: 15670 | F9: 7788 | G9: 14901 | H9: 0 | I9: 14901 | J9: 14901 | K9: 0
A10: 消费税 | B10: =SUM(C10:D10) -> 0 | G10: =SUM(H10:I10) -> 0 | I10: =SUM(J10:K10) -> 0
A11: 增值税 | B11: 25100 | C11: =E11+F11+G11 -> 25100 | E11: 12550 | F11: 3765 | G11: 8785 | I11: 8785 | J11: 8785
A12: 改征增值税 | B12: 0 | C12: 0 | G12: 0 | I12: 0
A13: 营业税 | B13: 0 | C13: 0 | G13: 0 | I13: 0
A14: 企业所得税 | B14: 4310 | C14: 4310 | E14: 2586 | F14: 862 | G14: 862 | I14: 862 | J14: 862
A15: 个人所得税 | B15: 890 | C15: 890 | E15: 534 | F15: 178 | G15: 178 | I15: 178 | J15: 178
A16: 资源税 | B16: 5960 | C16: =E16+F16+G16 -> 5960 | F16: 2980 | G16: 2980 | I16: 2980 | J16: 2980
A17: 城市维护建设税 | B17: 432 | C17: 432 | G17: 432 | I17: 432 | J17: 432
A18: 房产税 | B18: 462 | C18: 462 | G18: 462 | I18: 462 | J18: 462
A19: 印花税 | B19: 229 | C19: 229 | G19: 229 | I19: 229 | J19: 229
A20: 城镇土地使用税 | B20: 614 | C20: 614 | G20: 614 | I20: 614 | J20: 614
A21: 土地增值税 | B21: 58 | C21: 58 | G21: 58 | I21: 58 | J21: 58
A22: 车船税 | B22: 229 | C22: 229 | G22: 229 | I22: 229 | J22: 229
A23: 耕地占用税 | B23: 2 | C23: 2 | G23: 2 | I23: 2 | J23: 2
A24: 契税 | B24: 61 | C24: 61 | G24: 61 | I24: 61 | J24: 61
A25: 环境保护税 | B25: 12 | C25: 12 | F25: 3 | G25: 9 | I25: 9 | J25: 9
A26: 其他税收收入 | B26: 0 | C26: 0 | G26: 0 | I26: 0
A27: 二、非税收入 | B27: =SUM(B28,B39:B41,B43:B46) -> 19898 | C27: 5294 | D27: 14604 | E27: 180 | F27: 502 | G27: 19216 | H27: 180 | I27: 19036 | J27: 19036 | K27: 0
A28: 专项收入 | B28: =SUM(B29:B38) -> 1820 | C28: 1820 | D28: 0 | E28: 0 | F28: 142 | G28: 1678 | H28: 0 | I28: 1678 | J28: 1678 | K28: 0
A29: 排污费收入 | B29: =SUM(C29:D29) -> 0 | C29: =E29+F29+G29 -> 0 | G29: =SUM(H29:I29) -> 0 | I29: =SUM(J29:K29) -> 0
A30: 水资源费收入 | B30: 0 | C30: 0 | G30: 0 | I30: 0
A31: 教育费附加收入 | B31: 643 | C31: 643 | G31: 643 | I31: 643 | J31: 643
A32: 地方教育附加收入 | B32: 426 | C32: 426 | F32: 84 | G32: 342 | I32: 342 | J32: 342
A33: 育林基金收入 | B33: 0 | C33: 0 | G33: 0 | I33: 0
A34: 森林植被恢复费 | B34: 0 | C34: 0 | G34: 0 | I34: 0
A35: 残疾人就业保障金收入 | B35: 587 | C35: 587 | F35: 58 | G35: 529 | I35: 529 | J35: 529
A36: 教育资金收入 | B36: 82 | C36: 82 | G36: 82 | I36: 82 | J36: 82
A37: 农田水利建设资金收入 | B37: 82 | C37: 82 | G37: 82 | I37: 82 | J37: 82
A38: 其他专项收入 | B38: 0 | C38: 0 | G38: 0 | I38: 0
A39: 行政事业性收费收入 | B39: 3069 | C39: 2664 | D39: 405 | E39: 180 | F39: 360 | G39: 2529 | H39: 180 | I39: 2349 | J39: 2349
A40: 罚没收入 | B40: 1260 | C40: 810 | D40: 450 | G40: 1260 | I40: 1260 | J40: 1260
A41: 国有资本经营收入 | B41: 0 | C41: =E41+F41+G41 -> 0 | G41: 0 | I41: 0
A42: 其中：国有企业亏损计划补贴 | B42: 0 | C42: =E42+F42+G42 -> 0 | G42: 0 | I42: 0
A43: 国有资源有偿使用收入 | B43: 13702 | D43: 13702 | G43: 13702 | I43: 13702 | J43: 13702
A44: 捐赠收入 | B44: 42 | D44: 42 | G44: 42 | I44: 42 | J44: 42
A45: 政府住房基金收入 | B45: 3 | D45: 3 | G45: 3 | I45: 3 | J45: 3
A46: 其他收入 | B46: 2 | D46: 2 | G46: 2 | I46: 2 | J46: 2
A47: 政府性基金收入合计 | B47: =SUM(B48:B56) -> 625 | C47: =E47+F47+G47 -> 625 | D47: 625 | E47: 0 | F47: 60 | G47: 565 | H47: 0 | I47: 565 | J47: 565 | K47: 0
A48: 新型墙体材料专项基金收入 | B48: =SUM(C48:D48) -> 0 | C48: 0 | G48: =SUM(H48:I48) -> 0 | I48: =SUM(J48:K48) -> 0
A49: 城市公用事业附加收入 | B49: 0 | C49: 0 | G49: 0 | I49: 0
A50: 国有土地收益基金收入 | B50: 0 | C50: 0 | G50: 0 | I50: 0
A51: 农业土地开发资金收入 | B51: 0 | C51: 0 | G51: 0 | I51: 0
A52: 国有土地使用权出让收入 | B52: 560 | C52: 0 | D52: 560 | F52: 60 | G52: 500 | I52: 500 | J52: 500
A53: 城市基础设施配套费收入 | B53: 20 | D53: 20 | G53: 20 | I53: 20 | J53: 20
A54: 污水处理费收入 | B54: 45 | D54: 45 | G54: 45 | I54: 45 | J54: 45
A55: 彩票发行销售机构的业务费用 | B55: 0 | C55: =E55+F55+G55 -> 0 | G55: 0 | I55: 0
A56: 其他政府性基金收入 | B56: 0 | C56: 0 | G56: 0 | I56: 0
A57: 国有资本经营收入 | B57: =SUM(B58:B59) -> 51 | D57: 51 | E57: 0 | F57: 0 | G57: 51 | H57: 0 | I57: 51 | J57: 51 | K57: 0
A58: 利润收入 | B58: =SUM(C58:D58) -> 51 | C58: 0 | D58: 51 | G58: =SUM(H58:I58) -> 51 | I58: =SUM(J58:K58) -> 51 | J58: 51
A59: 股利、股息收入 | B59: =SUM(C59:D59) -> 0 | C59: 0 | G59: =SUM(H59:I59) -> 0 | I59: =SUM(J59:K59) -> 0

Sheet 2024年一般公共预算收入
A1: 表11 | B1: 表2
A2: 2024年一般公共预算收入预算表
G3: 单位：万元
A4: 项目 | C4: 上年预算数 | D4: 上年执行数 | E4: 预算数
A5: 代码 | B5: 名称 | E5: 金额 | F5: 为上年预算数的% | G5: 为上年执行数的%
A6: 101 | B6: 税收收入 | C6: =SUM(C7:C22) -> 14345 | D6: =SUM(D7:D22) -> 13992 | E6: =SUM(E7:E22) -> 14901 | F6: =IFERROR(E6/C6,0) -> 103.88% | G6: =IFERROR(E6/D6,0) -> 106.50%
A7: 10101 | B7: 增值税 | C7: 8292 | D7: 8249 | E7: 8785 | F7: 105.95% | G7: =IFERROR(E7/D7,0) -> 106.50%
A8: 10104 | B8: 企业所得税 | C8: 795 | D8: 809 | E8: 862 | F8: 108.43% | G8: 106.55%
A9: 10105 | B9: 企业所得税退税 | C9: 0 | E9: 0 | F9: 0.00% | G9: 0.00%
A10: 10106 | B10: 个人所得税 | C10: 179 | D10: 167 | E10: 178 | F10: 99.44% | G10: 106.59%
A11: 10107 | B11: 资源税 | C11: 2648 | D11: 2798 | E11: 2980 | F11: 112.54% | G11: 106.50%
A12: 10109 | B12: 城市维护建设税 | C12: 679 | D12: 471 | E12: 432 | F12: =IFERROR(E12/C12,0) -> 63.62% | G12: 91.72%
A13: 10110 | B13: 房产税 | C13: 332 | D13: 434 | E13: 462 | F13: 139.16% | G13: 106.45%
A14: 10111 | B14: 印花税 | C14: 192 | D14: 215 | E14: 229 | F14: 119.27% | G14: 106.51%
A15: 10112 | B15: 城镇土地使用税 | C15: 434 | D15: 578 | E15: 614 | F15: 141.47% | G15: 106.23%
A16: 10113 | B16: 土地增值税 | C16: 193 | D16: -11 | E16: 58 | F16: 30.05% | G16: -527.27%
A17: 10114 | B17: 车船税 | C17: 202 | D17: 215 | E17: 229 | F17: 113.37% | G17: 106.51%
A18: 10118 | B18: 耕地占用税 | C18: 312 | D18: 2 | E18: 2 | F18: 0.64% | G18: 100.00%
A19: 10119 | B19: 契税 | C19: 73 | D19: 57 | E19: 61 | F19: 83.56% | G19: 107.02%
A20: 10120 | B20: 烟叶税 | C20: 0 | E20: 0 | F20: 0.00% | G20: 0.00%
A21: 10121 | B21: 环境保护税 | C21: 14 | D21: 8 | E21: 9 | F21: 64.29% | G21: 112.50%
A22: 10199 | B22: 其他税收收入 | C22: 0 | E22: 0 | F22: 0.00% | G22: 0.00%
A23: 103 | B23: 非税收入 | C23: =SUM(C24:C31) -> 17243 | D23: =SUM(D24:D31) -> 17874 | E23: =SUM(E24:E31) -> 19036 | F23: 110.40% | G23: 106.50%
A24: 10302 | B24: 专项收入 | C24: 1650 | D24: 1576 | E24: 1678 | F24: 101.70% | G24: 106.47%
A25: 10304 | B25: 行政事业性收费收入 | C25: 1505 | D25: 2206 | E25: 2349 | F25: 156.08% | G25: 106.48%
A26: 10305 | B26: 罚没收入 | C26: 450 | D26: 1183 | E26: 1260 | F26: 280.00% | G26: 106.51%
A27: 10306 | B27: 国有资本经营收入 | D27: 7517 | F27: 0.00% | G27: 0.00%
A28: 10307 | B28: 国有资源（资产）有偿使用收入 | C28: =12105+148 -> 12253 | D28: 5348 | E28: 13702 | F28: 111.83% | G28: 256.21%
A29: 10308 | B29: 捐赠收入 | C29: 35 | D29: 39 | E29: 42 | F29: 120.00% | G29: 107.69%
A30: 10309 | B30: 政府住房基金收入 | C30: 21 | D30: 3 | E30: 3 | F30: 14.29% | G30: 100.00%
A31: 10399 | B31: 其他收入 | C31: 1329 | D31: 2 | E31: 2 | F31: 0.15% | G31: 100.00%
C32: 0 | E32: 0 | F32: 0.00% | G32: 0.00%
A33: 收入总计 | C33: =C6+C23 -> 31588 | D33: =D6+D23 -> 31866 | E33: =E6+E23 -> 33937 | F33: 107.44% | G33: 106.50%

Sheet 2024年一般公共预算经济分类支出预算
A1: 表3
A2: 2024年一般公共预算经济分类支出预算表
D3: 单位:万元
A4: 科目编码 | B4: 科目名称 | C4: 一般公共预算经济分类支出 | D4: 一般公共预算经济分类基本支出
B5: 一般公共预算经济分类支出合计 | C5: =SUM(C6,C11,C22,C30,C37,C41,C44,C48,C53,C59,C63,C68) -> 176,225 | D5: =SUM(D6,D11,D22,D30,D37,D41,D44,D48,D53,D59,D68) -> 57,764
A6: 501 | B6: 机关工资福利支出 | C6: =SUM(C7:C10) -> 53,028 | D6: =SUM(D7:D10) -> 33,563
A7: 50101 | B7: 工资奖金津补贴 | C7: 39,825 | D7: 27,013
A8: 50102 | B8: 社会保障缴费 | C8: 8,635 | D8: 3,823
A9: 50103 | B9: 住房公积金 | C9: 4,568 | D9: 2,727
A10: 50199 | B10: 其他工资福利支出
A11: 502 | B11: 机关商品和服务支出 | C11: =SUM(C12:C21) -> 13,672 | D11: =SUM(D12:D21) -> 4,974
A12: 50201 | B12: 办公经费 | C12: 12,366 | D12: 3,668
A13: 50202 | B13: 会议费 | C13: 143 | D13: 143
A14: 50203 | B14: 培训费 | C14: 355 | D14: 355
A15: 50204 | B15: 专用材料购置费 | C15: 9 | D15: 9
A16: 50205 | B16: 委托业务费 | C16: 7 | D16: 7
A17: 50206 | B17: 公务接待费 | C17: 146 | D17: 146
A18: 50207 | B18: 因公出国(境)费用
A19: 50208 | B19: 公务用车运行维护费 | C19: 550 | D19: 550
A20: 50209 | B20: 维修(护)费 | C20: 96 | D20: 96
A21: 50299 | B21: 其他商品和服务支出
A22: 503 | B22: 机关资本性支出(一) | C22: =SUM(C23:C29) -> 28,597 | D22: =SUM(D23:D29) -> 0
A23: 50301 | B23: 房屋建筑物购建 | C23: 8,963
A24: 50302 | B24: 基础设施建设 | C24: 8,211
A25: 50303 | B25: 公务用车购置 | C25: 95
A26: 50305 | B26: 土地征迁补偿和安置支出 | C26: 3,253
A27: 50306 | B27: 设备购置 | C27: 761
A28: 50307 | B28: 大型修缮 | C28: 7,314
A29: 50399 | B29: 其他资本性支出
A30: 504 | B30: 机关资本性支出(二) | C30: =SUM(C31:C36) -> 27,562 | D30: =SUM(D31:D36) -> 0
A31: 50401 | B31: 房屋建筑物购建 | C31: 9,685 | D31: 0
A32: 50402 | B32: 基础设施建设 | C32: 8,523 | D32: 0
A33: 50403 | B33: 公务用车购置 | C33: 0 | D33: 0
A34: 50404 | B34: 设备购置 | C34: 582 | D34: 0
A35: 50405 | B35: 大型修缮 | C35: 8,772 | D35: 0
A36: 50499 | B36: 其他资本性支出 | D36: 0
A37: 505 | B37: 对事业单位经常性补助 | C37: =SUM(C38:C40) -> 16,919 | D37: =SUM(D38:D40) -> 15,946
A38: 50501 | B38: 工资福利支出 | C38: 14,676 | D38: 13,703
A39: 50502 | B39: 商品和服务支出 | C39: 2,243 | D39: 2,243
A40: 50599 | B40: 其他对事业单位补助 | C40: 0 | D40: 0
A41: 506 | B41: 对事业单位资本性补助 | C41: =SUM(C42:C43) -> 20,008 | D41: =SUM(D42:D43) -> 0
A42: 50601 | B42: 资本性支出(一) | C42: 10,321 | D42: 0
A43: 50602 | B43: 资本性支出(二) | C43: 9,687 | D43: 0
A44: 507 | B44: 对企业补助 | C44: =SUM(C45:C47) -> 596 | D44: =SUM(D45:D47) -> 0
A45: 50701 | B45: 费用补贴 | C45: 337 | D45: 0
A46: 50702 | B46: 利息补贴 | C46: 259 | D46: 0
A47: 50799 | B47: 其他对企业补助 | D47: 0
A48: 508 | B48: 对企业资本性支出 | C48: =SUM(C49:C52) -> 0 | D48: =SUM(D49) -> 0
A49: 50803 | B49: 资本金注入(一) | C49: 0 | D49: 0
A50: 50804 | B50: 资本金注入(二) | C50: 0
A51: 50805 | B51: 政府投资基金股权投资 | C51: 0
A52: 50899 | B52: 其他对企业资本性支出 | C52: 0
A53: 509 | B53: 对个人和家庭的补助 | C53: =SUM(C54:C58) -> 10,505 | D53: =SUM(D54:D58) -> 1,852
A54: 50901 | B54: 社会福利和救助 | C54: 1,527 | D54: 1,527
A55: 50902 | B55: 助学金 | C55: 305 | D55: 305
A56: 50903 | B56: 个人农业生产补贴 | C56: 8,653
A57: 50905 | B57: 离退休费 | C57: 20 | D57: 20
A58: 50999 | B58: 其他对个人和家庭补助
A59: 510 | B59: 对社会保障基金补助 | C59: =SUM(C60:C62) -> 1,429 | D59: =SUM(D60:D62) -> 1,429
A60: 51002 | B60: 对社会保险基金补助 | C60: 1,399 | D60: 1,399
A61: 51003 | B61: 补充全国社会保障基金 | C61: 0 | D61: 0
A62: 51004 | B62: 对机关事业单位职业年金的补助 | C62: 30 | D62: 30
A63: 511 | B63: 债务利息及费用支出 | C63: =SUM(C64:C67) -> 3,909
A64: 51101 | B64: 国内债务付息 | C64: 3,789
A65: 51102 | B65: 国外债务付息 | C65: 100
A66: 51103 | B66: 国内债务发行费用 | C66: 20
A67: 51104 | B67: 国外债务发行费用 | C67: 0
A68: 599 | B68: 其他支出 | C68: =SUM(C69:C73) -> 0 | D68: =SUM(D69:D73) -> 0
A69: 59907 | B69: 国家赔偿费用支出 | C69: 0 | D69: 0
A70: 59908 | B70: 对民间非营利组织和群众性自治组织补贴 | C70: 0 | D70: 0
A71: 59909 | B71: 经常性赠与 | C71: 0 | D71: 0
A72: 59910 | B72: 资本性赠与 | C72: 0 | D72: 0
A73: 59999 | B73: 其他支出 | D73: 0

Sheet 2024年一般公共预算平衡表
A1: 表4
A2: 2024年一般公共预算收支平衡表
G3: 单位：万元
A4: 收入 | E4: 支出
A5: 项目 | B5: 上年预算数 | C5: 预算数 | D5: 同比增长 | E5: 项目 | F5: 上年预算数 | G5: 预算数 | H5: 同比增长
A6: 本级收入合计 | B6: 31588 | C6: 33937 | D6: =(C6-B6)/B6 -> 7.44% | E6: 本级支出合计 | F6: 158213 | G6: 176225 | H6: =(G6-F6)/F6 -> 11.38%
A7: 转移性收入 | B7: =B8+B74+B75+B79+B80+B81+B82 -> 133952 | C7: =C8+C74+C75+C79+C80+C81+C82 -> 150042 | D7: =(C7-B7)/B7 -> 12.01% | E7: 转移性支出 | F7: =F10 -> 7154 | G7: =G10 -> 7154 | H7: =(G7-F7)/F7 -> 0.00%
A8: 上级补助收入 | B8: =B9+B16+B51 -> 114193 | C8: =C9+C16+C51 -> 122271 | D8: 7.07% | E8: 上解支出 | F8: =F9+F10 -> 7154 | G8: =G9+G10 -> 7154 | H8: =(G8-F8)/F8 -> 0.00%
A9: 返还性收入 | B9: =SUM(B10:B15) -> 1207 | C9: =SUM(C10:C15) -> 1207 | D9: 0.00% | E9: 体制上解支出
A10: 所得税基数返还收入 | B10: 247 | C10: 247 | D10: 0.00% | E10: 专项上解支出 | F10: 7154 | G10: 7154 | H10: =(G10-F10)/F10 -> 0.00%
A11: 成品油税费改革税收返还收入 | B11: 10 | C11: 10 | D11: 0.00%
A12: 增值税税收返还收入 | B12: 333 | C12: 333 | D12: 0.00%
A13: 消费税税收返还收入
A14: 增值税五五分享税收返还收入 | B14: 617 | C14: 617 | D14: 0.00%
A15: 其他返还性收入
A16: 一般性转移支付收入 | B16: =SUM(B17:B50) -> 112470 | C16: =SUM(C17:C50) -> 119621 | D16: 6.36%
A17: 体制补助收入
A18: 均衡性转移支付收入 | B18: 15767 | C18: 19084 | D18: 21.04%
A19: 县级基本财力保障机制奖补资金收入 | B19: 7,225 | C19: 6847 | D19: -5.23%
A20: 结算补助收入 | B20: 955 | C20: 331 | D20: -65.34%
A21: 资源枯竭型城市转移支付补助收入
A22: 企业事业单位划转补助收入 | B22: 671 | C22: 587 | D22: -12.52%
A23: 成品油税费改革转移支付补助收入
A24: 重点生态功能区转移支付收入 | B24: 10,270 | C24: 11972 | D24: 16.57%
A25: 固定数额补助收入 | B25: 12,649 | C25: 12561 | D25: -0.70%
A26: 革命老区转移支付收入
A27: 民族地区转移支付收入 | B27: 17,000 | C27: 18745 | D27: 10.26%
A28: 边境地区转移支付收入
A29: 贫困地区转移支付收入 | B29: 4,941 | C29: 5930 | D29: 20.02%
A30: 一般公共服务共同财政事权转移支付收入
A31: 外交共同财政事权转移支付收入
A32: 国防共同财政事权转移支付收入
A33: 公共安全共同财政事权转移支付收入 | B33: 281 | C33: 378
A34: 教育共同财政事权转移支付收入 | B34: 624 | C34: 2763 | D34: 342.79%
A35: 科学技术共同财政事权转移支付收入
A36: 文化旅游体育与传媒共同财政事权转移支付收入 | B36: 665 | C36: 903 | D36: 35.79%
A37: 社会保障和就业共同财政事权转移支付收入 | B37: 5178 | C37: 4677 | D37: -9.68%
A38: 卫生健康共同财政事权转移支付收入 | B38: 438 | C38: 790 | D38: 80.37%
A39: 节能环保共同财政事权转移支付收入 | B39: 362
A40: 城乡社区共同财政事权转移支付收入
A41: 农林水共同财政事权转移支付收入 | B41: 34009 | C41: 33266 | D41: =(C41-B41)/B41 -> -2.18%
A42: 交通运输共同财政事权转移支付收入 | C42: 434
A43: 资源勘探信息等共同财政事权转移支付收入
A44: 商业服务业等共同财政事权转移支付收入
A45: 金融共同财政事权转移支付收入
A46: 自然资源海洋气象等共同财政事权转移支付收入
A47: 住房保障共同财政事权转移支付收入 | C47: 76
A48: 粮油物资储备共同财政事权转移支付收入
A49: 其他共同财政事权转移支付收入
A50: 其他一般性转移支付收入 | B50: 1,435 | C50: 277 | D50: =(C50-B50)/B50 -> -80.70%
A51: 专项转移支付收入 | B51: =SUM(B52:B71) -> 516 | C51: =SUM(C52:C71) -> 1443 | D51: =(C51-B51)/B51 -> 179.65%
A52: 一般公共服务 | B52: 15 | C52: 7 | D52: =(C52-B52)/B52 -> -53.33%
A53: 外交
A54: 国防
A55: 公共安全
A56: 教育
A57: 科学技术
A58: 文化旅游体育与传媒
A59: 社会保障和就业 | C59: 105
A60: 卫生健康 | B60: 83 | C60: 96
A61: 节能环保 | C61: 50
A62: 城乡社区 | C62: 60
A63: 农林水 | B63: 418 | C63: 1035 | D63: =(C63-B63)/B63 -> 147.61%
A64: 交通运输
A65: 资源勘探信息等
A66: 商业服务业等 | C66: 90
A67: 金融
A68: 自然资源海洋气象等
A69: 住房保障
A70: 粮油物资储备
A71: 其他收入
A74: 上年结余收入 | B74: 19759 | C74: 27771
A75: 调入资金 | E75: 调出资金
A76: 从政府性基金预算调入 | E76: 年终结余（正数为结余，负数为赤字）
A77: 从国有资本经营预算调入 | E77: 地方政府一般债务还本支出 | F77: 173 | G77: 600
A78: 从其他资金调入 | E78: 地方政府一般债务转贷支出
A79: 地方政府一般债务收入 | E79: 援助其他地区支出
A80: 地方政府一般债务转贷收入 | E80: 安排预算稳定调节基金
A81: 接受其他地区援助收入 | E81: 补充预算周转金
A82: 动用预算稳定调节基金
A85: 收入总计 | B85: =B6+B7 -> 165540 | C85: =C6+C7 -> 183979 | D85: =(C85-B85)/B85 -> 11.14% | E85: 支出总计 | F85: =F6+F7+F75+F76+F77+F79+F80+F81 -> 165540 | G85: =G6+G7+G77 -> 183979 | H85: =(G85-F85)/F85 -> 11.14%

Sheet 2024年一般公共预算“三公”经费会议费培训费支出安排汇总表
A1: 表5
A2: 2024年一般公共预算“三公”经费、会议费、培训费支出预算表
A3: 单位：万元
A4: 项 目 | B4: 2023年预算数 | C4: 2024年预算数 | D4: 较上年预算数增（减）幅%
A5: 一、“三公”经费支出 | B5: =B6+B7+B10 -> 700.6 | C5: =C6+C7+C10 -> 682.83 | D5: =(C5-B5)/B5 -> -2.54% | F5: 720.6
A6: 1．因公出国（境）费 | F6: 2.26
A7: 2．公务用车购置及运行维护费 | B7: =B8+B9 -> 555 | C7: =C8+C9 -> 541.54 | D7: =(C7-B7)/B7 -> -2.43% | F7: 570.11
A8: （1）公务用车购置费 | B8: 100 | C8: 100 | D8: 0.00% | F8: 97
A9: （2）公务用车运行维护费 | B9: 455 | C9: 441.54 | D9: -2.96% | F9: 473.11
A10: 3．公务接待费 | B10: 145.6 | C10: 141.29 | D10: -2.96% | F10: 148.23
A11: 二、会议费 | B11: 143 | C11: 139.17 | D11: -2.68% | F11: 158.94
A12: 三、培训费 | B12: 355 | C12: 346.09 | D12: -2.51% | F12: 374.32
A13: 本表中“三公”经费、会议费、培训费分别含在部门预算（包括行政单位、参公事业单位、事业单位等）基本支出和项目支出。

Sheet 提前下达共同财政事权和专项转移支付补助资金（一般）
A1: 表6
A2: 提前下达2024年共同财政事权和专项转移支付补助资金（一般公共预算）
A3: 序号 | B3: 文号 | C3: 摘要 | D3: 预算数（万元）
A4: 1 | B4: 甘财预〔2023〕100号 | C4: 关于提前下达2024年乡镇财政资金监管绩效奖补资金的通知 | D4: 70.00
A5: 2 | B5: 甘财农〔2023〕135号 | C5: 关于提前下达2024年中央财政耕地建设与利用资金（高标准农田建设方向）预算的通知 | D5: 989.00
A6: 3 | B6: 甘财农〔2023〕136号 | C6: 关于提前下达2024年中央财政耕地建设与利用资金（耕地地力保护补贴）预算的通知 | D6: 992.00
A7: 4 | B7: 甘财农〔2023〕137号 | C7: 关于提前下达2024年第三轮草原生态保护补助奖励资金预算的通知 | D7: 26870.60
A8: 5 | B8: 甘财农〔2023〕139号 | C8: 关于提前下达2024年中央财政农业产业发展资金预算的通知 | D8: 532.50
A9: 6 | B9: 甘财农〔2023〕140号 | C9: 关于提前下达2024年中央财政农业经营主体能力提升资金预算的通知 | D9: 321.00
A10: 7 | B10: 甘财农〔2023〕143号 | C10: 关于提前下达2024年省级财政农业生态资源保护资金预算的通知 | D10: 12.00
A11: 8 | B11: 甘财农〔2023〕144号 | C11: 关于提前下达2024年省级东北地区和京津冀受灾地区等高标准农田建设补助资金预算的通知 | D11: 369.00
A12: 9 | B12: 甘财农〔2023〕145号 | C12: 关于提前下达2024年省级财政耕地建设与利用资金（耕地质量保护提升支出）预算的通知 | D12: 5.00
A13: 10 | B13: 甘财农〔2023〕146号 | C13: 关于提前下达2024年省级财政农业防灾减灾和水利救灾资金（农作物病虫害防治补助）预算的通知 | D13: 5.00
A14: 11 | B14: 甘财农〔2023〕148号 | C14: 关于提前下达2024年省级财政农业产业发展资金（农产品质量安全监管支出）预算的通知 | D14: 20.00
A15: 12 | B15: 甘财农〔2023〕151号 | C15: 关于提前下达2024奶奶省级水资源费预算的通知 | D15: 66.00
A16: 13 | B16: 甘财农〔2023〕153号 | C16: 关于提前下达2024年中央财政农业防灾和水利救灾资金（动物防疫补助）预算的通知 | D16: 37.24
A17: 14 | B17: 甘财农〔2023〕154号 | C17: 关于提前下达2024年省级财政农业防灾减灾和水利救灾资金（动物防疫补助）预算的通知 | D17: 37.41
A18: 15 | B18: 甘财农〔2023〕179号 | C18: 关于提前下达2024年省级水利发展资金预算的通知 | D18: 200.00
A19: 16 | B19: 甘财振兴〔2023〕28号 | C19: 关于提前下达2024年中央财政衔接推进乡村振兴补助资金预算的通知 | D19: 4532.00
A20: 17 | B20: 甘财振兴〔2023〕29号 | C20: 关于提前下达2024年省级财政衔接乡村振兴补助资金预算的通知 | D20: 1393.00
A21: 18 | B21: 甘财社〔2023〕125号 | C21: 关于提前下达2024年中央财政医疗服务与保障能力提升补助资金（医疗保障服务能力建设部分）预算的通知 | D21: 22.00
A22: 19 | B22: 甘财社〔2023〕126号 | C22: 关于提前下达2024年优抚对象医疗保障经费预算的通知 | D22: 2.19
A23: 20 | B23: 甘财社〔2023〕127号 | C23: 关于提前下达2024年优抚对象补助经费预算（第一批）的通知 | D23: 99.41
A24: 21 | B24: 甘财社〔2023〕129号 | C24: 关于提前下达2024年乡村公益性岗位省级补助资金的通知 | D24: 30.60
A25: 22 | B25: 甘财社〔2023〕130号 | C25: 关于提前下达2024年优抚对象补助经费预算（第二批）的通知 | D25: 22.40
A26: 23 | B26: 甘财社〔2023〕131号 | C26: 关于提前下达2024年退役安置补助经费预算的通知 | D26: 206.00
A27: 24 | B27: 甘财社〔2023〕136号 | C27: 关于提前下达2024年城乡居民基本养老保险省级补助资金预算的通知 | D27: 183.00
A28: 25 | B28: 甘财社〔2023〕137号 | C28: 关于提前下达2024年就业补助资金预算的通知 | D28: 723.00
A29: 26 | B29: 甘财社〔2023〕144号 | C29: 关于提前下达2024年自主就业退役士兵省级补助经费预算的通知 | D29: 16.95
A30: 27 | B30: 甘财社〔2023〕147号 | C30: 关于提前下达2024年困难群众救助补助预算指标的通知 | D30: 1653.00
A31: 28 | B31: 甘财社〔2023〕148号 | C31: 关于提前下达2024年机关事业单位养老保险制度改革补助经费预算的通知 | D31: 1085.00
A32: 29 | B32: 甘财社〔2023〕154号 | C32: 关于提前下达2024年基本公共卫生服务中央和省级补助资金预算的通知 | D32: 215.48
A33: 30 | B33: 甘财社〔2023〕155号 | C33: 关于提前下达2024年计划生育中央和省级补助资金预算的通知 | D33: 211.79
A34: 31 | B34: 甘财社〔2023〕156号 | C34: 关于提前下达2024年基本药物制度中央补助资金预算的通知 | D34: 105.15
A35: 32 | B35: 甘财社〔2023〕157号 | C35: 关于提前下达2024年中央财政医疗服务与保障能力提升（公立医院综合改革）及省级补助资金预算的通知 | D35: 103.00
A36: 33 | B36: 甘财社〔2023〕159号 | C36: 关于提前下达2024年中央财政医疗服务与保障能力提升补助资金（医疗卫生机构能力建设）预算的通知 | D36: 100.00
A37: 34 | B37: 甘财社〔2023〕160号 | C37: 关于提前下达2024年医疗服务与保障能力提升（医疗卫生机构能力建设、卫生健康人才培养）中央补助资金预算的通知 | D37: 10.00
A38: 35 | B38: 甘财社〔2023〕165号 | C38: 关于下达2024年省级财政残疾人事业发展补助资金预算的通知 | D38: 82.50
A39: 36 | B39: 甘财社〔2023〕167号 | C39: 关于提前下达2024年城乡居民基本养老保险补助资金预算的通知 | D39: 604.00
A40: 37 | B40: 甘财社〔2023〕168号 | C40: 关于提前下达2024年省级有关卫生健康项目转移支付补助资金预算的通知 | D40: 45.63
A41: 38 | B41: 甘财社〔2023〕170号 | C41: 关于提前下达2024年鼠疫防控省级资金的通知 | D41: 50.00
A42: 39 | B42: 张财社〔2023〕87号 | C42: 关于提前下达2024年军队转业干部补助经费 | D42: 9.38
A43: 40 | B43: 甘财行〔2023〕49号 | C43: 关于提前下达2024年涉藏基层基础建设专项资金 | D43: 25.00
A44: 41 | B44: 甘财行〔2023〕52号 | C44: 关于提前下达2024年全省驻村第一书记工作经费的通知 | D44: 5.00
A45: 42 | B45: 甘财教〔2023〕53号 | C45: 关于提前下达2024年学前教育发展专项资金的通知 | D45: 288.00
A46: 43 | B46: 甘财教〔2023〕55号 | C46: 关于提前下达2024年城乡义务教育补助经费的通知 | D46: 552.08
A47: 44 | B47: 甘财教〔2023〕56号 | C47: 关于提前下达2024年学生资助补助的经费 | D47: 82.40
A48: 45 | B48: 甘财教〔2023〕60号 | C48: 关于提前下达2024年义务教育薄弱环节改善与能力提升补助资金的通知 | D48: 1822.00
A49: 46 | B49: 甘财教〔2023〕63号 | C49: 关于提前下达2024年“三区”人才计划教师专项工作补助的通知 | D49: 2.00
A50: 47 | B50: 甘财政法〔2023〕43号 | C50: 关于提前下达2024年全省司法行政系统中央政法纪检监察转移支付资金预算的通知 | D50: 54.00
A51: 48 | B51: 甘财政法〔2023〕45号 | C51: 关于提前下达2024年全省公安机关中央政法纪检监察转移支付资金预算的通知 | D51: 316.00
A52: 49 | B52: 甘财政法〔2023〕52号 | C52: 关于提前下达2024年过渡性安置帮教、出狱所人员接送及调节补助经费的通知 | D52: 8.00
A53: 50 | B53: 甘财科〔2023〕79号 | C53: 关于提前下达2024年公共体育场馆向社会免费或低收费开放补助资金预算的通知 | D53: 10.00
A54: 51 | B54: 甘财科〔2023〕88号 | C54: 关于提前下达2024年博物馆纪念馆免费开放补助资金预算的通知 | D54: 10.00
A55: 52 | B55: 甘财科〔2023〕89号 | C55: 关于提前下达2024年国家文物保护资金预算的通知 | D55: 188.00
A56: 53 | B56: 甘财金〔2023〕56号 | C56: 关于提前下达中央财政农业保险保费补贴2024年预算指标的通知 | D56: 1911.00
A57: 54 | B57: 甘财金〔2023〕60号 | C57: 关于提前下达2024年省级财政农业保险保费补贴预算指标的通知 | D57: 801.00
A58: 55 | B58: 甘财金〔2023〕61号 | C58: 关于提前下达2024年中央和省级财政普惠金融发展专项资金的通知 | D58: 153.00
A59: 56 | B59: 张财行〔2023〕65号 | C59: 关于提前下达2024年市场监督管理专项资金的通知 | D59: 16.00
A60: 57 | B60: 甘财资环〔2023〕110号 | C60: 关于提前下达2024年中央林业草原改革发展资金预算的通知 | D60: 92.45
A61: 58 | B61: 甘财资环〔2023〕138号 | C61: 关于提前下达2024年省级林业草原资源保护与发展有关资金预算的通知 | D61: 10.00
A62: 59 | B62: 甘财建〔2023〕218号 | C62: 关于提前下达2024年车辆购置税收入补助地方资金预算（第三批）用于自然村（组）通硬化路部分的通知 | D62: 122.00
A63: 60 | B63: 甘财建〔2023〕230号 | C63: 关于提前下达2024年省级服务业发展专项资金的通知 | D63: 90.00
A64: 61 | B64: 甘财综〔2023〕63号 | C64: 关于提前下达2024年部分中央财政城镇保障性安居工程补助资金预算的通知 | D64: 9.00
A65: 62 | B65: 甘财综〔2023〕66号 | C65: 关于提前下达2024年中央和省级财政农村危房改造补助资金预算的通知 | D65: 57.92
A66: 63 | B66: 甘财综〔2023〕67号 | C66: 关于下达2024年省级城乡建设补助资金预算的通知 | D66: 60.00
A67: 64 | B67: 甘财综〔2023〕65号 | C67: 甘肃省财政厅、甘肃省住房和城乡建设厅关于提前下达2024年省级财政保障性安居工程补助资金 | D67: 9.00
A68: 65 | B68: 张财社〔2023〕98号 | C68: 关于提前下达2024 年省级财政残疾人事业发展补助资金预算的通知 | D68: 16.10
A69: 66 | B69: 张财社〔2023〕97号 | C69: 关于提前下达2024年中央财政残疾人事业发展补助资金预算的通知 | D69: 9.43
A70: 67 | B70: 甘财资环〔2015〕63号 | C70: 甘肃省财政厅关于下达下划道路运输（水运）管理系统经费的通知 | D70: 76.00
A71: 68 | B71: 甘财建〔2023〕217号 | C71: 甘肃省财政厅关于提前下达2024年车辆购置税收入补助地方资金预算（第三批）直达资金部分的通知 | D71: 122.00
A72: 69 | B72: 甘财社〔2022〕105号 | C72: 甘肃省财政厅关于提前下达2023年省级有关卫生健康项目转移支付补助资金预算的通知 | D72: 14.09
A73: 70 | B73: 甘财建〔2019〕211号 | C73: 甘肃省财政厅关于下达下划公路路政执法人员经费的通知 | D73: 84.00
A74: 71 | B74: 甘财教〔2023〕70号 | C74: 甘肃省财政厅 甘肃省教育关于提前下达2024年义务教育课后服务奖补资金的通知 | D74: 14.00
A75: 72 | B75: 甘财行〔2023〕44号 | C75: 甘肃省财政厅关于下达市场监督管理专项资金的通知 | D75: 16.00
A76: 73 | B76: 甘财行〔2023〕37号 | C76: 甘肃省财政厅关于提前下达2024年食品药品监管补助资金预算的通知 | D76: 2.00
A77: 74 | B77: 甘财农〔2023〕173号 | C77: 甘肃省财政厅关于提前下达2024年中央财政水利发展资金预算的通知 | D77: 140.15
A78: 75 | B78: 甘财科〔2023〕83号 | C78: 甘肃省财政厅关于提前下达2024年中央支持地方公共文化服务体系建设补助资金（广电项目）预算的通知 | D78: 494.73
A79: 76 | B79: 甘财科〔2023〕76号 | C79: 甘肃省财政厅关于提前下达2024年中央支持地方公共文化服务体系建设补助资金（文化项目） 预算的通知 | D79: 20.00
A80: 77 | B80: 甘财预〔2023〕101号 | C80: 关于提前下达2024年度基层政权建设项目奖补资金的通知 | D80: 150.00
A81: 78 | B81: 张财社〔2024〕1号 | C81: 张掖市财政局 张掖市民政局关于提前下达2024年高龄津贴省级补助资金的通知 | D81: 6.54
A82: 79 | B82: 甘财农〔2023〕133号 | C82: 关于提前下达2024年省级农村综合改革转移支付预算的通知 | D82: 737.00
A83: 80 | B83: 甘财科〔2023〕80号 | C83: 甘肃省财政厅关于提前下达2024年中央支持地方公共文化服务体系建设补助资金（新时代文明实践中心建设项目）预算的通知 | D83: 30.50
A84: 81 | B84: 张财教〔2023〕140号 | C84: 学生资助补助资金(中等职业教育——中央级资金) | D84: 0.54
A85: 82 | B85: 甘财科〔2023〕86号 | C85: 关于提前下达2024年中央支持地方公共文化服务体系建设补助资金（一般项目）预算的通知 | D85: 150.00
A86: 83 | B86: 甘财预〔2013〕110号 | C86: 甘肃省财政厅关于下达成品油价格和税费改革转移支付补助的通知 | D86: 30.00
A87: 84 | B87: 甘财资环〔2023〕118 号 | C87: 甘肃省财政厅关于下达环境污染防治与监测监管专项的通知 | D87: 50.00
A88: 85 | B88: 甘财社〔2023〕145号 | C88: 甘肃省财政厅关于提前下达2024年优抚事业单位补助经费预算的通知 | D88: 28.00
A89: 86 | B89: 甘财教〔2023〕67号 | C89: 甘肃省财政厅 甘肃省教育厅关于提前下达2024年中小学幼儿园教师国家级培训计划资金的通知 | D89: 2.00
A90: 87 | B90: 甘财行〔2023〕51号 | C90: 甘肃省财政厅关于提前下达第五次全国经济普查补助经费专项资金的通知 | D90: 5.00
A91: 88 | B91: 张财社〔2024〕10号 | C91: 关于提前下达2024年基本公共卫生服务中央和省级补助资金预算的通知 | D91: 0.79
A92: 89 | B92: 张财社〔2024〕11号 | C92: 关于提前下达2024年医疗服务与保障能力提升（医疗卫生机构能力建设、卫生健康人才培养）中央补助资金预算的通知 | D92: 5.00
A93: 90 | B93: 张财社〔2024〕4号 | C93: 关于提前下达2024年企业军转干部生活困难补助经费预算的通知 | D93: 7.00
B94: 合计 | D94: =SUM(D4:D93) -> 50936.95

Sheet 2024年政府性基金预算
A1: 表7
A2: 2024年政府性基金收支预算表
L3: 单位：万元
A4: 收入 | G4: 支出
A5: 项目 | B5: 上年预算数 | C5: 上年执行数 | D5: 预算数 | G5: 项目 | H5: 上年预算数 | I5: 上年执行数 | J5: 预算数
D6: 金额 | E6: 为上年预算数的% | F6: 为上年执行数的% | J6: 金额 | K6: 为上年预算数的% | L6: 为上年执行数的%
A7: 一、农网还贷资金收入 | G7: 一、文化旅游体育与传媒支出
A8: 二、海南省高等级公路车辆通行附加费收入 | G8: 国家电影事业发展专项资金安排的支出
A9: 三、国家电影事业发展专项资金收入 | G9: 资助国产影片放映
A10: 四、国有土地收益基金收入 | G10: 资助影院建设
A11: 五、农业土地开发资金收入 | G11: 资助少数民族语电影译制
A12: 六、国有土地使用权出让收入 | B12: =SUM(B13:B17) -> 1115 | C12: =SUM(C13:C17) -> 501 | D12: =SUM(D13:D17) -> 500 | E12: =D12/B12 -> 44.84% | F12: =D12/C12 -> 99.80% | G12: 购买农村电影公益性放映版权服务
A13: 土地出让价款收入 | B13: 1115 | C13: 1132 | D13: 500 | E13: =D13/B13 -> 44.84% | F13: =D13/C13 -> 44.17% | G13: 其他国家电影事业发展专项资金支出
A14: 补缴的土地价款 | C14: 4 | F14: =D14/C14 -> 0.00% | G14: 旅游发展基金支出
A15: 划拨土地收入 | G15: 宣传促销
A16: 缴纳新增建设用地土地有偿使用费 | C16: -635 | F16: =D16/C16 -> 0.00% | G16: 行业规划
A17: 其他土地出让收入 | G17: 旅游事业补助
A18: 七、大中型水库库区基金收入 | G18: 地方旅游开发项目补助
A19: 八、彩票公益金收入 | G19: 其他旅游发展基金支出
A20: 福利彩票公益金收入 | G20: 国家电影事业发展专项资金对应专项债务收入安排的支出
A21: 体育彩票公益金收入 | G21: 资助城市影院
A22: 九、城市基础设施配套费收入 | B22: 15 | C22: 26 | D22: 20 | E22: =D22/B22 -> 133.33% | F22: =D22/C22 -> 76.92% | G22: 其他国家电影事业发展专项资金对应专项债务收入支出
A23: 十、小型水库移民扶助基金收入 | G23: 二、社会保障和就业支出 | H23: =H24+H28+H32 -> 24 | I23: =I24+I28+I32 -> 23 | J23: 24 | K23: =J23/H23 -> 100.00% | L23: =J23/I23 -> 104.35%
A24: 十一、国家重大水利工程建设基金收入 | G24: 大中型水库移民后期扶持基金支出 | H24: =SUM(H25:H26) -> 24 | I24: =SUM(I25:I26) -> 23 | J24: =SUM(J25:J26) -> 24 | K24: =J24/H24 -> 100.00% | L24: =J24/I24 -> 104.35%
A25: 十二、车辆通行费 | G25: 移民补助 | H25: 24 | I25: 23 | J25: 24 | K25: =J25/H25 -> 100.00% | L25: =J25/I25 -> 104.35%
A26: 十三、污水处理费收入 | B26: 45 | C26: 45 | D26: 45 | E26: =D26/B26 -> 100.00% | F26: =D26/C26 -> 100.00% | G26: 基础设施建设和经济发展
A27: 十四、彩票发行机构和彩票销售机构的业务费用 | G27: 其他大中型水库移民后期扶持基金支出
A28: 福利彩票销售机构的业务费用 | G28: 小型水库移民扶助基金安排的支出
A29: 体育彩票销售机构的业务费用 | G29: 移民补助
A30: 彩票兑奖周转金 | G30: 基础设施建设和经济发展
A31: 彩票发行销售风险基金 | G31: 其他小型水库移民扶助基金支出
A32: 彩票市场调控资金收入 | G32: 小型水库移民扶助基金对应专项债务收入安排的支出
A33: 十五、其他政府性基金收入 | G33: 基础设施建设和经济发展
A34: 十六、专项债券对应项目专项收入 | C34: 1664 | G34: 其他小型水库移民扶助基金对应专项债务收入安排的支出
G35: 三、节能环保支出
G36: 可再生能源电价附加收入安排的支出
G37: 风力发电补助
G38: 太阳能发电补助
G39: 生物质能发电补助
G40: 其他可再生能源电价附加收入安排的支出
G41: 废弃电器电子产品处理基金支出
G42: 回收处理费用补贴
G43: 信息系统建设
G44: 基金征管经费
G45: 其他废弃电器电子产品处理基金支出
G46: 四、城乡社区支出 | H46: =H47+H63+H67+H68+H74+H78+H82+H86+H92+H95 -> 1175 | I46: =I47+I63+I67+I68+I74+I78+I82+I86+I92+I95 -> 574 | J46: =J47+J63+J67+J68+J74+J78+J82+J86+J92+J95 -> 847 | K46: =J46/H46 -> 72.09% | L46: =J46/I46 -> 147.56%
G47: 国有土地使用权出让收入安排的支出 | H47: =SUM(H48:H59) -> 1115 | I47: =SUM(I48:I62) -> 549 | J47: =SUM(J48:J59) -> 782 | K47: =J47/H47 -> 70.13% | L47: =J47/I47 -> 142.44%
G48: 征地和拆迁补偿支出 | H48: 765 | I48: 206 | J48: 500 | K48: =J48/H48 -> 65.36% | L48: =J48/I48 -> 242.72%
G49: 土地开发支出
G50: 城市建设支出 | I50: 181 | J50: 182
G51: 农村基础设施建设支出 | H51: 100 | I51: 137 | J51: 100
G52: 补助被征地农民支出
G53: 土地出让业务支出 | H53: 50 | I53: 4 | L53: =J53/I53 -> 0.00%
G54: 廉租住房支出
G55: 支付破产或改制企业职工安置费
G56: 棚户区改造支出
G57: 公共租赁住房支出
G58: 保障性住房租金补贴
G59: 其他国有土地使用权出让收入安排的支出 | H59: 200
G60: 农业生产发展支出
G61: 农村社会事业支出 | H61: 100
G62: 农业农村生态环境支出 | I62: 21 | L62: =J62/I62 -> 0.00%
G63: 国有土地收益基金安排的支出 | I63: 11
G64: 征地和拆迁补偿支出
G65: 土地开发支出 | I65: 11
G66: 其他国有土地收益基金支出
G67: 农业土地开发资金安排的支出
G68: 城市基础设施配套费安排的支出 | H68: 15 | J68: 20 | K68: =J68/H68 -> 133.33%
G69: 城市公共设施 | H69: 15 | J69: 20 | K69: =J69/H69 -> 133.33%
G70: 城市环境卫生
G71: 公有房屋
G72: 城市防洪
G73: 其他城市基础设施配套费安排的支出
G74: 污水处理费收入安排的支出 | H74: 45 | I74: 14 | J74: 45 | K74: =J74/H74 -> 100.00% | L74: =J74/I74 -> 321.43%
G75: 污水处理设施建设和运营 | H75: 45 | I75: 14 | J75: 45 | K75: =J75/H75 -> 100.00% | L75: =J75/I75 -> 321.43%
G76: 代征手续费
G77: 其他污水处理费安排的支出
G78: 土地储备专项债券收入安排的支出
G79: 征地和拆迁补偿支出
G80: 土地开发支出
G81: 其他土地储备专项债券收入安排的支出
G82: 棚户区改造专项债券收入安排的支出
G83: 征地和拆迁补偿支出
G84: 土地开发支出
G85: 其他棚户区改造专项债券收入安排的支出
G86: 城市基础设施配套费对应专项债务收入安排的支出
G87: 城市公共设施
G88: 城市环境卫生
G89: 公有房屋
G90: 城市防洪
G91: 其他城市基础设施配套费对应专项债务收入安排的支出
G92: 污水处理费对应专项债务收入安排的支出
G93: 污水处理设施建设和运营
G94: 其他污水处理费对应专项债务收入安排的支出
G95: 国有土地使用权出让收入对应专项债务收入安排的支出
G96: 征地和拆迁补偿支出
G97: 土地开发支出
G98: 城市建设支出
G99: 农村基础设施建设支出
G100: 廉租住房支出
G101: 棚户区改造支出
G102: 公共租赁住房支出
G103: 其他国有土地使用权出让收入对应专项债务收入安排的支出
G104: 五、农林水支出
G105: 大中型水库库区基金安排的支出
G106: 基础设施建设和经济发展
G107: 解决移民遗留问题
G108: 库区防护工程维护
G109: 其他大中型水库库区基金支出
G110: 三峡水库库区基金支出
G111: 基础设施建设和经济发展
G112: 解决移民遗留问题
G113: 库区维护和管理
G114: 其他三峡水库库区基金支出
G115: 国家重大水利工程建设基金安排的支出
G116: 南水北调工程建设
G117: 三峡后续工作
G118: 地方重大水利工程建设
G119: 其他重大水利工程建设基金支出
G120: 六、交通运输支出
G121: 海南省高等级公路车辆通行附加费安排的支出
G122: 公路建设
G123: 公路养护
G124: 公路还贷
G125: 其他海南省高等级公路车辆通行附加费安排的支出
G126: 车辆通行费安排的支出
G127: 公路还贷
G128: 政府还贷公路养护
G129: 政府还贷公路管理
G130: 其他车辆通行费安排的支出
G131: 铁路建设基金支出
G132: 铁路建设投资
G133: 购置铁路机车车辆
G134: 铁路还贷
G135: 建设项目铺底资金
G136: 勘测设计
G137: 注册资本金
G138: 周转资金
G139: 其他铁路建设基金支出
G140: 船舶油污损害赔偿基金支出
G141: 应急处置费用
G142: 控制清除污染
G143: 损失补偿
G144: 生态恢复
G145: 监视监测
G146: 其他船舶油污损害赔偿基金支出
G147: 民航发展基金支出
G148: 民航机场建设
G149: 空管系统建设
G150: 民航安全
G151: 航线和机场补贴
G152: 民航节能减排
G153: 通用航空发展
G154: 征管经费
G155: 其他民航发展基金支出
G156: 海南省高等级公路车辆通行附加费对应专项债务收入安排的支出
G157: 公路建设
G158: 其他海南省高等级公路车辆通行附加费对应专项债务收入安排的支出
G159: 政府收费公路专项债券收入安排的支出
G160: 公路建设
G161: 其他政府收费公路专项债券收入安排的支出
G162: 车辆通行费对应专项债务收入安排的支出
G163: 七、资源勘探工业信息等支出
G164: 农网还贷资金支出
G165: 地方农网还贷资金支出
G166: 其他农网还贷资金支出
G167: 八、其他支出 | H167: =H168+H172+H181 -> 372 | I167: =I168+I172+I181 -> 23073 | J167: =J168+J172+J181 -> 206 | K167: =J167/H167 -> 55.38% | L167: =J167/I167 -> 0.89%
G168: 其他政府性基金及对应专项债务收入安排的支出 | H168: =SUM(H169:H171) -> 0 | I168: =SUM(I169:I171) -> 22600 | J168: =SUM(J169:J171) -> 0 | L168: =J168/I168 -> 0.00%
G169: 其他政府性基金安排的支出
G170: 其他地方自行试点项目收益专项债券收入安排的支出 | I170: 22600 | L170: =J170/I170 -> 0.00%
G171: 其他政府性基金债务收入安排的支出
G172: 彩票发行销售机构业务费安排的支出
G173: 福利彩票发行机构的业务费支出
G174: 体育彩票发行机构的业务费支出
G175: 福利彩票销售机构的业务费支出
G176: 体育彩票销售机构的业务费支出
G177: 彩票兑奖周转金支出
G178: 彩票发行销售风险基金支出
G179: 彩票市场调控资金支出
G180: 其他彩票发行销售机构业务费安排的支出
G181: 彩票公益金安排的支出 | H181: =SUM(H182:H191) -> 372 | I181: =SUM(I182:I191) -> 473 | J181: =SUM(J182:J191) -> 206 | K181: =J181/H181 -> 55.38% | L181: =J181/I181 -> 43.55%
G182: 用于社会福利的彩票公益金支出 | H182: 41 | I182: 130 | J182: 195 | L182: =J182/I182 -> 150.00%
G183: 用于体育事业的彩票公益金支出 | H183: 296 | I183: 298 | K183: =J183/H183 -> 0.00% | L183: =J183/I183 -> 0.00%
G184: 用于教育事业的彩票公益金支出
G185: 用于红十字事业的彩票公益金支出
G186: 用于残疾人事业的彩票公益金支出 | H186: 11 | I186: 21 | J186: 11 | K186: =J186/H186 -> 100.00% | L186: =J186/I186 -> 52.38%
G187: 用于文化事业的彩票公益金支出
G188: 用于巩固脱贫衔接乡村振兴的彩票公益金支出
G189: 用于法律援助的彩票公益金支出
G190: 用于城乡医疗救助的的彩票公益金支出 | H190: 24 | I190: 24
G191: 用于其他社会公益事业的彩票公益金支出
G192: 九、债务付息支出 | I192: =SUM(I193:I207) -> 1644 | L192: =J192/I192 -> 0.00%
G193: 海南省高等级公路车辆通行附加费债务付息支出
G194: 国家电影事业发展专项资金债务付息支出
G195: 国有土地使用权出让金债务付息支出
G196: 农业土地开发资金债务付息支出
G197: 大中型水库库区基金债务付息支出
G198: 城市基础设施配套费债务付息支出
G199: 小型水库移民扶助基金债务付息支出
G200: 国家重大水利工程建设基金债务付息支出
... 54 more rows

Sheet 提前下达专项资金（基金）
A1: 表8
A2: 提前下达2024年共同财政事权和专项转移支付补助资金（政府性基金预算）
A4: 序号 | B4: 文号 | C4: 摘要 | D4: 预算数（万元）
A5: 1 | B5: 甘财社〔2023〕141号 | C5: 关于提前下达2024年中央财政残疾人事业发展补助资金预算的通知 | D5: 10.80
A6: 2 | B6: 甘财社〔2023〕142号 | C6: 关于提前下达2024年中央集中彩票公益金支持社会福利事业专项资金预算指标的通知 | D6: 112.00
A7: 3 | B7: 张财社〔2023〕88号 | C7: 关于提前下达2024年中央集中彩票公益金支持社会福利事业专项资金预算指标的通知 | D7: 110.00
C8: 关于提前下达2024年中央集中彩票公益金支持社会福利事业专项资金预算指标的通知 | D8: 3.00
A9: 合计 | D9: =SUBTOTAL(9,D4:D8) -> 235.80

Sheet 2024年社会保险基金预算
A1: 表9
A2: 2024年社会保险基金收支预算表
A3: 单位：万元
A4: 项 目 | B4: 合计 | C4: 企业职工基本养老保险基金 | D4: 城乡居民基本养老保险基金 | E4: 机关事业单位基本养老保险基金 | F4: 职工基本医疗保险(含生育保险)基金 | G4: 城乡居民基本医疗保险基金 | H4: 工伤保险基金 | I4: 失业保险基金
A5: 一、收入 | B5: =SUM(C5:I5) -> 14,016 | C5: 0 | D5: 2,883 | E5: 11,133 | F5: 0 | G5: 0 | H5: 0
A6: 其中:社会保险费收入 | B6: 8,947 | C6: 0 | D6: 953 | E6: 7,994 | F6: 0 | G6: 0 | H6: 0
A7: 财政补贴收入 | B7: 4,931 | C7: 0 | D7: 1,909 | E7: 3,022 | F7: 0 | G7: 0 | H7: 0
A8: 利息收入 | B8: 60 | C8: 0 | D8: 17 | E8: 43 | F8: 0 | G8: 0 | H8: 0
A9: 委托投资收益 | B9: 0 | C9: 0 | D9: 0 | E9: 0 | F9: 0 | G9: 0 | H9: 0
A10: 转移收入 | B10: 73 | C10: 0 | D10: 0 | E10: 73 | F10: 0 | G10: 0 | H10: 0
A11: 其他收入 | B11: 0 | C11: 0 | D11: 0 | E11: 0 | F11: 0 | G11: 0 | H11: 0
A12: 全国统筹调剂资金收入 | B12: 0 | C12: 0 | D12: 0 | E12: 0 | F12: 0 | G12: 0 | H12: 0
A13: 二、支出 | B13: 14,794 | C13: 0 | D13: 2,814 | E13: 11,980 | F13: 0 | G13: 0 | H13: 0
A14: 其中:社会保险待遇支出 | B14: 14,021 | C14: 0 | D14: 2,054 | E14: 11,967 | F14: 0 | G14: 0 | H14: 0
A15: 转移支出 | B15: 13 | C15: 0 | D15: 0 | E15: 13 | F15: 0 | G15: 0 | H15: 0
A16: 其他支出 | B16: 0 | C16: 0 | D16: 0 | E16: 0 | F16: 0 | G16: 0 | H16: 0
A17: 全国统筹调剂资金支出 | B17: 0 | C17: 0 | D17: 0 | E17: 0 | F17: 0 | G17: 0 | H17: 0
A18: 三、本年收支结余 | B18: -778 | C18: =SUM(C5)-SUM(C13) -> 0 | D18: 69 | E18: -847 | F18: 0 | G18: 0 | H18: 0 | I18: 0
A19: 四、年末滚存结余 | B19: 2,560 | C19: 0 | D19: 1,420 | E19: 1,140 | F19: 0 | G19: 0 | H19: 0

Sheet 2024年国有资本经营预算
A1: 表10
A2: 2024年国有资本经营收支预算表
A3: 单位：万元
A4: 收 入 | I4: 支 出
A5: 项 目 | B5: 行次 | C5: 执行数 | F5: 预算数 | I5: 项 目 | J5: 行次 | K5: 执行数 | N5: 预算数
C6: 合计 | D6: 省本级 | E6: 地市级及以下 | F6: 合计 | G6: 省本级 | H6: 地市级及以下 | K6: 合计 | L6: 省本级 | M6: 地市级及以下 | N6: 合计 | O6: 省本级 | P6: 地市级及以下
A7: 栏次 | C7: 1 | D7: 2 | E7: 3 | F7: 4 | G7: 5 | H7: 6 | I7: 栏次 | K7: 1 | L7: 2 | M7: 3 | N7: 4 | O7: 5 | P7: 6
A8: 一、利润收入 | B8: 1 | E8: 2.00 | I8: 一、解决历史遗留问题及改革成本支出 | J8: 11 | K8: 1.00 | M8: 1.00 | P8: 1.00
A9: 二、股利、股息收入 | B9: 2 | E9: 165.00 | H9: 51.00 | I9: 二、国有企业资本金注入 | J9: 12
A10: 三、产权转让收入 | B10: 3 | I10: 三、国有企业政策性补贴 | J10: 13
A11: 四、清算收入 | B11: 4 | I11: 四、其他国有资本经营预算支出 | J11: 14 | P11: 218.00
A12: 五、其他国有资本经营预算收入 | B12: 5
A14: 本年收入合计 | B14: 6 | E14: 167.00 | H14: 51.00 | I14: 本年支出合计 | J14: 15 | K14: 1.00 | M14: 1.00 | P14: 219.00
A15: 国有资本经营预算转移支付收入 | B15: 7 | E15: 1.00 | H15: 1.00 | I15: 国有资本经营预算转移支付支出 | J15: 16
A16: 国有资本经营预算上解收入 | B16: 8 | I16: 国有资本经营预算上解支出 | J16: 17
A17: 国有资本经营预算上年结余收入 | B17: 9 | H17: 167.00 | I17: 国有资本经营预算调出资金 | J17: 18
I18: 国有资本经营预算年终结余 | J18: 19 | K18: 167.00 | M18: 167.00
A19: 收 入 总 计 | B19: 10 | E19: 168.00 | H19: 219.00 | I19: 支 出 总 计 | J19: 20 | K19: 168.00 | M19: 168.00 | N19: 219.00 | P19: 219.00

Sheet 2024年政府采购预算
A1: 表11
A2: 2024年度政府采购预算
H3: 单位：元
A4: 序号 | B4: 单位名称 | C4: 项目类型 | D4: 资金来源
D5: 合计 | E5: 部门预算基本支出 | F5: 本级财政专项 | G5: 上级财政专项 | H5: 单位自有及其他
B6: 合计 | D6: =E6+F6+G6+H6 -> 35400479.00 | E6: =SUM(E7:E238) -> 13183949.00 | F6: 12027650.00 | G6: 8040000.00 | H6: 2148880.00
A7: 1 | B7: 中共肃南裕固族自治县县委办公室 | C7: 货物类小计 | D7: 108730.00 | E7: 108730.00
C8: 服务类小计 | D8: 33000.00 | E8: 33000.00
A9: 2 | B9: 肃南裕固族自治县人民代表大会常务委员会办公室 | C9: 货物类小计 | D9: 131500.00 | E9: 131500.00
C10: 服务类小计 | D10: 195000.00 | E10: 195000.00
A11: 3 | B11: 肃南裕固族自治县人民政府办公室 | C11: 货物类小计 | D11: 260000.00 | E11: 260000.00
C12: 服务类小计 | D12: 60000.00 | E12: 60000.00
A13: 4 | B13: 中国人民政治协商会议甘肃省肃南裕固族自治县委员会办公室 | C13: 货物类小计 | D13: 71220.00 | E13: 67900.00 | F13: 3320.00
C14: 服务类小计 | D14: 246680.00 | E14: 20000.00 | F14: 226680.00
A15: 5 | B15: 中共肃南裕固族自治县委组织部 | C15: 货物类小计 | D15: 318000.00 | E15: 138000.00 | F15: 100000.00 | H15: 80000.00
C16: 服务类小计 | D16: 227000.00 | E16: 77000.00 | F16: 120000.00 | H16: 30000.00
A17: 6 | B17: 中共肃南裕固族自治县委宣传部 | C17: 货物类小计 | D17: 15000.00 | E17: 15000.00
C18: 服务类小计 | D18: 13000.00 | E18: 13000.00
A19: 7 | B19: 中共肃南裕固族自治县委统战部 | C19: 货物类小计 | D19: 11000.00 | E19: 11000.00
C20: 服务类小计 | D20: 93000.00 | E20: 33000.00 | F20: 60000.00
A21: 8 | B21: 中共肃南裕固族自治县委政法委员会 | C21: 货物类小计 | D21: 61350.00 | E21: 61350.00
C22: 服务类小计 | D22: 25000.00 | E22: 25000.00
A23: 9 | B23: 肃南裕固族自治县档案馆 | C23: 货物类小计 | D23: 35500.00 | E23: 35500.00
C24: 服务类小计 | D24: 4000.00 | E24: 4000.00
A25: 10 | B25: 中共肃南裕固族自治县委机构编制委员会办公室 | C25: 货物类小计 | D25: 30400.00 | E25: 30400.00
C26: 服务类小计 | D26: 4000.00 | E26: 4000.00
A27: 11 | B27: 中共肃南裕固族自治县委直属机关工作委员会 | C27: 货物类小计 | D27: 47600.00 | E27: 47600.00
C28: 服务类小计 | D28: 6000.00 | E28: 6000.00
A29: 12 | B29: 肃南裕固族自治县图书馆 | C29: 货物类小计 | D29: 106150.00 | F29: 106150.00
C30: 服务类小计 | D30: 30000.00 | F30: 30000.00
A31: 13 | B31: 肃南裕固族自治县妇女联合会 | C31: 货物类小计 | D31: 7000.00 | E31: 7000.00
C32: 服务类小计 | D32: 80000.00 | E32: 80000.00
A33: 14 | B33: 中国共产主义青年团甘肃省肃南裕固族自治县委员会 | C33: 货物类小计 | D33: 10000.00 | E33: 10000.00
C34: 服务类小计 | D34: 10000.00 | E34: 10000.00
A35: 15 | B35: 肃南裕固族自治县工商业联合会 | C35: 货物类小计 | D35: 6400.00 | E35: 6400.00
C36: 服务类小计 | D36: 6000.00 | E36: 6000.00
A37: 16 | B37: 肃南裕固族自治县科学技术协会 | C37: 货物类小计 | D37: 102600.00 | E37: 6600.00 | F37: 96000.00
C38: 服务类小计 | D38: 80000.00 | E38: 5000.00 | F38: 75000.00
A39: 17 | B39: 肃南裕固族自治县文学艺术界联合会 | C39: 货物类小计 | D39: 17000.00 | E39: 17000.00
C40: 服务类小计 | D40: 68000.00 | E40: 8000.00 | F40: 60000.00
A41: 18 | B41: 中共肃南裕固族自治县委党史研究室 | C41: 货物类小计 | D41: 2300.00 | E41: 2300.00
C42: 服务类小计 | D42: 3000.00 | E42: 3000.00
A43: 19 | B43: 肃南裕固族自治县信访局 | C43: 货物类小计 | D43: 28200.00 | E43: 7200.00 | F43: 21000.00
C44: 服务类小计 | D44: 10000.00 | E44: 10000.00
A45: 20 | B45: 肃南裕固族自治县地震局 | C45: 货物类小计 | D45: 17800.00 | E45: 17800.00
C46: 服务类小计 | D46: 6000.00 | E46: 6000.00
A47: 21 | B47: 肃南裕固族自治县统计局 | C47: 货物类小计 | D47: 98840.00 | E47: 9700.00 | F47: 89140.00
C48: 服务类小计 | D48: 115000.00 | E48: 20000.00 | F48: 95000.00
A49: 22 | B49: 肃南裕固族自治县政府机关事务管理局 | C49: 货物类小计 | D49: 1012500.00 | E49: 12500.00 | F49: 1000000.00
C50: 服务类小计 | D50: 1303000.00 | E50: 3000.00 | F50: 1300000.00
A51: 23 | B51: 中国共产党肃南裕固族自治县纪律检查委员会 | C51: 货物类小计 | D51: 202200.00 | E51: 202200.00
C52: 服务类小计 | D52: 50000.00 | E52: 50000.00
A53: 24 | B53: 中共肃南裕固族自治县委巡察工作领导小组办公室 | C53: 货物类小计 | D53: 10800.00 | E53: 10800.00
C54: 服务类小计 | D54: 25000.00 | E54: 25000.00
A55: 25 | B55: 肃南裕固族自治县财政局 | C55: 货物类小计 | D55: 118500.00 | E55: 118500.00
C56: 服务类小计 | D56: 85000.00 | E56: 85000.00
A57: 26 | B57: 肃南裕固族自治县财政局皇城财政所 | C57: 货物类小计 | D57: 3000.00 | E57: 3000.00
C58: 服务类小计 | D58: 29000.00 | E58: 29000.00
A59: 27 | B59: 肃南裕固族自治县财政局祁丰财政所 | C59: 货物类小计 | D59: 20700.00 | E59: 20700.00
C60: 服务类小计 | D60: 23000.00 | E60: 23000.00
A61: 28 | B61: 肃南裕固族自治县财政局大河财政所 | C61: 货物类小计 | D61: 4500.00 | E61: 4500.00
C62: 服务类小计 | D62: 30000.00 | E62: 30000.00
A63: 29 | B63: 肃南裕固族自治县财政局马蹄财政所 | C63: 货物类小计 | D63: 0.00
C64: 服务类小计 | D64: 0.00
A65: 30 | B65: 肃南裕固族自治县财政局康乐财政所 | C65: 货物类小计 | D65: 9500.00 | F65: 9500.00
C66: 服务类小计 | D66: 33000.00 | F66: 33000.00
A67: 31 | B67: 肃南裕固族自治县财政局明花财政所 | C67: 货物类小计 | D67: 6200.00 | E67: 6200.00
C68: 服务类小计 | D68: 25000.00 | E68: 25000.00
A69: 32 | B69: 肃南裕固族自治县财政局白银财政所 | C69: 货物类小计 | D69: 2400.00 | E69: 2400.00
C70: 服务类小计 | D70: =E70+F70+G70+H70 -> 10500.00 | E70: 10500.00
A71: 33 | B71: 肃南裕固族自治县教育局 | C71: 货物类小计 | D71: 70530.00 | E71: 61890.00 | F71: 8640.00
C72: 服务类小计 | D72: 265500.00 | E72: 58500.00 | F72: 207000.00
A73: 34 | B73: 肃南裕固族自治县幼儿园 | C73: 货物类小计 | D73: 62000.00 | E73: 62000.00
C74: 服务类小计 | D74: 25000.00 | E74: 25000.00
A75: 35 | B75: 肃南裕固族自治县第一中学 | C75: 货物类小计 | D75: 254720.00 | E75: 254720.00
C76: 服务类小计 | D76: 74000.00 | E76: 74000.00
A77: 36 | B77: 肃南裕固族自治县红湾小学 | C77: 货物类小计 | D77: 91000.00 | E77: 91000.00
C78: 服务类小计 | D78: 80000.00 | E78: 80000.00
A79: 37 | B79: 肃南裕固族自治县第二中学 | C79: 货物类小计 | D79: 121000.00 | E79: 121000.00
C80: 服务类小计 | D80: 14000.00 | E80: 14000.00
A81: 38 | B81: 肃南裕固族自治县康乐明德学校 | C81: 货物类小计 | D81: 9100.00 | E81: 9100.00
C82: 服务类小计 | D82: 6000.00 | E82: 6000.00
A83: 39 | B83: 肃南裕固族自治县明花学校 | C83: 货物类小计 | D83: 97000.00 | E83: 97000.00
C84: 服务类小计 | D84: 25000.00 | E84: 25000.00
A85: 40 | B85: 肃南裕固族自治县祁丰学校 | C85: 货物类小计 | D85: 37700.00 | E85: 37700.00
C86: 服务类小计 | D86: 3000.00 | E86: 3000.00
A87: 41 | B87: 肃南裕固族自治县马蹄学校 | C87: 货物类小计 | D87: 21000.00 | E87: 21000.00
C88: 服务类小计 | D88: 3000.00 | E88: 3000.00
A89: 42 | B89: 肃南裕固族自治县泱翔中心小学 | C89: 货物类小计 | D89: 3830.00 | E89: 3830.00
C90: 服务类小计 | D90: 0.00
A91: 43 | B91: 肃南裕固族自治县铧尖明德小学 | C91: 货物类小计 | D91: 5000.00 | E91: 5000.00
C92: 服务类小计 | D92: 2000.00 | E92: 2000.00
A93: 44 | B93: 肃南裕固族自治县职业技术教育培训中心 | C93: 货物类小计 | D93: 92000.00 | E93: 82000.00 | F93: 10000.00
C94: 服务类小计 | D94: 1688000.00 | E94: 8000.00 | F94: 100000.00 | G94: 1580000.00
A95: 45 | B95: 肃南裕固族自治县融媒体中心 | C95: 货物类小计 | D95: 481000.00 | E95: 21000.00 | F95: 460000.00
C96: 服务类小计 | D96: 42000.00 | E96: 42000.00
A97: 46 | B97: 县文体广电和旅游局 | C97: 货物类小计 | D97: 170400.00 | E97: 170400.00
C98: 服务类小计 | D98: 1920000.00 | E98: 100000.00 | F98: 1820000.00
A99: 47 | B99: 肃南裕固族自治县民族歌舞团 | C99: 货物类小计 | D99: 20380.00 | E99: 20380.00
C100: 服务类小计 | D100: 12000.00 | E100: 12000.00
A101: 48 | B101: 肃南裕固族自治县民族博物馆 | C101: 货物类小计 | D101: 82600.00 | F101: 82600.00
C102: 服务类小计 | D102: 100000.00 | F102: 100000.00
A103: 49 | B103: 肃南裕固族自治县石窝会议纪念馆 | C103: 货物类小计 | D103: 18820.00 | F103: 18820.00
C104: 服务类小计 | D104: 360000.00 | F104: 360000.00
A105: 50 | B105: 肃南裕固族自治县体育运动中心 | C105: 货物类小计 | D105: 7500.00 | E105: 7500.00
C106: 服务类小计 | D106: 15000.00 | E106: 15000.00
A107: 51 | B107: 肃南裕固族自治县科学技术局 | C107: 货物类小计 | D107: 7500.00 | E107: 7500.00
C108: 服务类小计 | D108: 85000.00 | E108: 5000.00 | H108: 80000.00
A109: 52 | B109: 肃南裕固族自治县审计局 | C109: 货物类小计 | D109: 56080.00 | E109: 56080.00
C110: 服务类小计 | D110: 8000.00 | E110: 8000.00
A111: 53 | B111: 肃南裕固族自治县市场监督管理局 | C111: 货物类小计 | D111: 90000.00 | E111: 90000.00
C112: 服务类小计 | D112: 65000.00 | E112: 65000.00
A113: 54 | B113: 肃南裕固文化长廊旅游景区管理中心 | C113: 货物类小计 | D113: 5600.00 | E113: 5600.00
C114: 服务类小计 | D114: 23000.00 | E114: 23000.00
A115: 55 | B115: 肃南裕固族自治县马蹄寺旅游区管理委员会 | C115: 货物类小计 | D115: 33640.00 | E115: 33640.00
C116: 服务类小计 | D116: 3500.00 | E116: 3500.00
A117: 56 | B117: 中国共产党肃南裕固族自治县委员会党校 | C117: 货物类小计 | D117: 76000.00 | E117: 71000.00 | F117: 5000.00
C118: 服务类小计 | D118: 598800.00 | E118: 8800.00 | F118: 590000.00
A119: 57 | B119: 肃南裕固族自治县民族宗教事务局 | C119: 货物类小计 | D119: 9000.00 | E119: 9000.00
C120: 服务类小计 | D120: 40000.00 | E120: 40000.00
A121: 58 | B121: 肃南裕固族自治县总工会 | C121: 货物类小计 | D121: 191650.00 | E121: 191650.00
C122: 服务类小计 | D122: 200000.00 | E122: 200000.00
A123: 59 | B123: 肃南裕固族自治县司法局 | C123: 货物类小计 | D123: 70000.00 | E123: 70000.00
C124: 服务类小计 | D124: 130000.00 | E124: 130000.00
A125: 60 | B125: 肃南裕固族自治县公安局 | C125: 货物类小计 | D125: 903000.00 | E125: 503000.00 | F125: 400000.00
C126: 服务类小计 | D126: 349200.00 | E126: 50000.00 | F126: 299200.00
A127: 61 | B127: 肃南裕固族自治县公安局交通警察大队 | C127: 货物类小计 | D127: 102000.00 | E127: 102000.00
C128: 服务类小计 | D128: 59000.00 | E128: 59000.00
A129: 62 | B129: 肃南裕固族自治县红湾寺镇人民政府 | C129: 货物类小计 | D129: 431400.00 | E129: 431400.00
C130: 服务类小计 | D130: 570000.00 | E130: 570000.00
A131: 63 | B131: 肃南裕固族自治县皇城镇人民政府 | C131: 货物类小计 | D131: 323600.00 | E131: 323600.00
C132: 服务类小计 | D132: 132000.00 | E132: 132000.00
A133: 64 | B133: 肃南裕固族自治县康乐镇人民政府 | C133: 货物类小计 | D133: 213100.00 | E133: 213100.00
C134: 服务类小计 | D134: =E134+F134+G134+H134 -> 150000.00 | E134: 150000.00
A135: 65 | B135: 肃南裕固族自治县白银蒙古族乡人民政府 | C135: 货物类小计 | D135: 169492.00 | E135: 169492.00
C136: 服务类小计 | D136: 80000.00 | E136: 80000.00
A137: 66 | B137: 肃南裕固族自治县大河乡人民政府 | C137: 货物类小计 | D137: 281900.00 | E137: 253300.00 | F137: 28600.00
C138: 服务类小计 | D138: 265000.00 | E138: 115000.00 | F138: 150000.00
A139: 67 | B139: 肃南裕固族自治县明花乡人民政府 | C139: 货物类小计 | D139: 219632.00 | E139: 219632.00
C140: 服务类小计 | D140: 78000.00 | E140: 78000.00
A141: 68 | B141: 肃南裕固族自治县祁丰藏族乡人民政府 | C141: 货物类小计 | D141: 799600.00 | E141: 799600.00
C142: 服务类小计 | D142: 168000.00 | E142: 168000.00
A143: 69 | B143: 肃南裕固族自治县马蹄藏族乡人民政府 | C143: 货物类小计 | D143: 359800.00 | E143: 359800.00
C144: 服务类小计 | D144: 80000.00 | E144: 80000.00
A145: 70 | B145: 交通局 | C145: 货物类小计 | D145: 68000.00 | E145: 68000.00
C146: 服务类小计 | D146: 55000.00 | E146: 55000.00
A147: 71 | B147: 县乡公路站 | C147: 货物类小计 | D147: 5000.00 | E147: 5000.00
C148: 服务类小计 | D148: 77000.00 | E148: 77000.00
A149: 72 | B149: 应急局 | C149: 货物类小计 | D149: 151850.00 | E149: 151850.00
C150: 服务类小计 | D150: 100000.00 | E150: 20000.00 | F150: 80000.00
A151: 73 | B151: 消防大队 | C151: 货物类小计 | D151: 16200.00 | E151: 16200.00
C152: 服务类小计 | D152: 2365800.00 | E152: 165800.00 | F152: 2200000.00
A153: 74 | B153: 供销社 | C153: 货物类小计 | D153: 39800.00 | E153: 39800.00
C154: 服务类小计 | D154: 8000.00 | E154: 8000.00
A155: 75 | B155: 发改局 | C155: 货物类小计 | D155: 116300.00 | E155: 86800.00 | F155: 29500.00
C156: 服务类小计 | D156: 300000.00 | E156: 60000.00 | F156: 240000.00
A157: 76 | B157: 工信局 | C157: 货物类小计 | D157: 212500.00 | E157: 212500.00
C158: 服务类小计 | D158: 60000.00 | E158: 60000.00
A159: 77 | B159: 大河园区 | C159: 货物类小计 | D159: 18000.00 | E159: 18000.00
C160: 服务类小计 | D160: 41600.00 | E160: 41600.00
A161: 78 | B161: 自然资源局 | C161: 货物类小计 | D161: 90000.00 | E161: 90000.00
C162: 服务类小计 | D162: 270000.00 | E162: 270000.00
A163: 79 | B163: 林业工作站 | C163: 货物类小计 | D163: 14800.00 | E163: 14800.00
C164: 服务类小计 | D164: 8000.00 | E164: 8000.00
A165: 80 | B165: 园林绿化站 | C165: 货物类小计 | D165: 32950.00 | E165: 32950.00
C166: 服务类小计 | D166: 139500.00 | E166: 5000.00 | F166: 134500.00
A167: 81 | B167: 明海林场 | C167: 货物类小计 | D167: 5000.00 | E167: 5000.00
C168: 服务类小计 | D168: 25000.00 | E168: 25000.00
A169: 82 | B169: 祁青工业园 | C169: 货物类小计 | D169: 22400.00 | E169: 22400.00
C170: 服务类小计 | D170: 40000.00 | E170: 40000.00
A171: 83 | B171: 城建局 | C171: 货物类小计 | D171: 112000.00 | E171: 112000.00
C172: 服务类小计 | D172: 6991000.00 | E172: 31000.00 | F172: 500000.00 | G172: 6460000.00
A173: 84 | B173: 玉水苑 | C173: 货物类小计 | D173: 52500.00 | E173: 52500.00
C174: 服务类小计 | D174: 3000.00 | E174: 3000.00
A175: 85 | B175: 交易中心 | C175: 货物类小计 | D175: 81000.00 | E175: 16000.00 | F175: 65000.00
C176: 服务类小计 | D176: 20000.00 | E176: 10000.00 | F176: 10000.00
A177: 86 | B177: 肃南县卫健局 | C177: 货物类小计 | D177: 196800.00 | E177: 196800.00
C178: 服务类小计 | D178: 151000.00 | E178: 151000.00
A179: 87 | B179: 肃南县人民医院 | C179: 货物类小计 | D179: 0.00
C180: 服务类小计 | D180: 0.00
A181: 88 | B181: 肃南县民族医院 | C181: 货物类小计 | D181: 100000.00 | H181: 100000.00
C182: 服务类小计 | D182: 458200.00 | H182: 458200.00
A183: 89 | B183: 肃南县妇幼保健院 | C183: 货物类小计 | D183: 84000.00 | F183: 84000.00
C184: 服务类小计 | D184: 130000.00 | F184: 90000.00 | H184: 40000.00
A185: 90 | B185: 肃南县疾控中心 | C185: 货物类小计 | D185: 75000.00 | F185: 75000.00
C186: 服务类小计 | D186: 365000.00 | F186: 365000.00
A187: 91 | B187: 皇城镇卫生院 | C187: 货物类小计 | D187: 79340.00 | H187: 79340.00
C188: 服务类小计 | D188: 77000.00 | H188: 77000.00
A189: 92 | B189: 祁丰卫生院 | C189: 货物类小计 | D189: 72500.00 | H189: 72500.00
C190: 服务类小计 | D190: 100000.00 | H190: 100000.00
A191: 93 | B191: 马蹄卫生院 | C191: 货物类小计 | D191: 90000.00 | H191: 90000.00
C192: 服务类小计 | D192: 78000.00 | H192: 78000.00
A193: 94 | B193: 大河卫生院 | C193: 货物类小计 | D193: 78300.00 | H193: 78300.00
C194: 服务类小计 | D194: 128000.00 | H194: 128000.00
A195: 95 | B195: 康乐卫生院 | C195: 货物类小计 | D195: 104600.00 | H195: 104600.00
C196: 服务类小计 | D196: 125000.00 | H196: 125000.00
A197: 96 | B197: 明花卫生院 | C197: 货物类小计 | D197: 167960.00 | H197: 167960.00
C198: 服务类小计 | D198: =E198+F198+G198+H198 -> 110000.00 | H198: 110000.00
A199: 97 | B199: 祁青卫生院 | C199: 货物类小计 | D199: 46980.00 | H199: 46980.00
C200: 服务类小计 | D200: 103000.00 | H200: 103000.00
... 38 more rows
